bitfinex/quotes_ETHUSD_20240823
["timestamp","ask_amount","ask_price","bid_price","bid_amount"]
[1724420039387,3.76672,2654.9,2654.4,0.09409526]
[1724420039765,3.76672,2654.9,2654.4,3.86140526]
[1724420039970,7.53314,2655.0,2654.4,5.37327979]
[1724420040205,3.76656,2655.0,2654.4,5.37327979]
[1724420040419,3.76656,2655.0,2654.4,1.60596979]
[1724420040867,2.4264,2655.4,2654.8,3.76668]
[1724420040868,7.53201,2655.4,2654.8,3.76668]
[1724420041215,3.766,2655.4,2654.9,0.09347299]
[1724420041720,3.766,2655.4,2654.9,0.85616729]
[1724420042037,0.59084114,2655.6,2655.1,3.76633]
[1724420042329,0.59084114,2655.6,2655.2,0.09307225]
[1724420042330,3.76605,2655.3,2655.2,0.09307225]
[1724420042618,7.5321,2655.3,2655.2,0.09307225]
[1724420042764,3.84092018,2655.3,2654.6,11.25699]
[1724420042966,3.76625,2655.2,2654.6,13.46026207]
[1724420043318,3.76679,2654.8,2654.7,0.09365511]
[1724420043524,7.53355,2654.8,2654.7,0.09365511]
[1724420043703,7.53355,2654.8,2653.9,11.25793]
[1724420043704,3.76719,2654.5,2653.9,11.25793]
[1724420043887,3.76719,2654.5,2653.9,7.49]
[1724420044229,3.76775,2654.1,2654.0,0.09132698]
[1724420044565,3.76757,2654.3,2654.0,0.09132698]
[1724420044908,4.143989,2654.5,2654.0,0.09132698]
[1724420044909,3.76727,2654.5,2654.0,0.09132698]
[1724420045114,7.53455,2654.5,2654.0,0.09132698]
[1724420045433,4.3158,2655.5,2654.1,3.76774]
[1724420045434,3.76698,2654.7,2654.1,3.76774]
[1724420045715,3.7667,2654.9,2654.3,3.76746]
[1724420046138,3.76684,2654.8,2654.4,0.09086043]
[1724420046420,3.76713,2654.6,2654.4,0.09086043]
[1724420046570,3.76713,2654.6,2654.0,6.23716]
[1724420046774,3.76713,2654.6,2654.0,1.749515]
[1724420046775,3.76737,2654.4,2654.0,1.749515]
[1724420046985,3.767728,2655.1,2654.1,0.09121033]
[1724420046986,7.53522,2654.2,2654.1,0.09121033]
[1724420047186,3.76761,2654.2,2653.6,3.76846]
[1724420047522,3.76761,2654.2,2653.7,0.09167699]
[1724420048111,2.2825,2654.5,2653.5,7.49]
[1724420048112,3.768,2654.0,2653.5,7.49]
[1724420048312,3.768,2654.0,2653.8,0.09156031]
[1724420048487,2.2825,2654.5,2653.8,0.09156031]
[1724420048488,7.53537,2654.2,2653.8,0.09156031]
[1724420048815,3.76765,2654.2,2653.6,3.76846]
[1724420048972,3.76765,2654.2,2653.9,0.09144364]
[1724420049313,3.76765,2654.2,2654.0,0.09132698]
[1724420049618,7.53536,2654.2,2654.0,0.09132698]
[1724420049821,3.76765,2654.2,2653.6,3.76846]
[1724420050186,3.76765,2654.2,2653.7,0.09167699]
[1724420050786,7.53538,2654.2,2653.7,0.09167699]
[1724420050986,7.53537,2654.2,2653.7,0.09167699]
[1724420051318,3.7678,2654.1,2653.7,0.09167699]
[1724420051515,7.53534,2654.2,2653.7,0.09167699]
[1724420051887,3.76779,2654.1,2653.7,0.09167699]
[1724420052085,3.76765,2654.2,2653.7,0.09167699]
[1724420053028,7.53535,2654.2,2653.7,0.09167699]
[1724420053323,3.76776,2654.1,2653.7,0.09167699]
[1724420053473,7.53535,2654.2,2653.7,0.09167699]
[1724420053678,3.76765,2654.2,2653.7,0.09167699]
[1724420054638,3.76741,2654.4,2653.7,5.13039529]
[1724420054793,0.62487018,2654.3,2653.7,0.09167699]
[1724420055121,0.07487018,2654.2,2653.5,11.25854]
[1724420055290,3.76797,2654.0,2653.8,0.09156031]
[1724420055490,3.76797,2654.0,2653.5,11.25852]
[1724420055686,3.76797,2654.0,2653.9,0.09144364]
[1724420056013,3.76797,2654.0,2653.5,11.25852]
[1724420056214,3.76797,2654.0,2653.5,12.613282]
[1724420056513,3.76778,2654.1,2653.6,0.09251427]
[1724420056714,3.84255018,2654.2,2653.6,0.09251427]
[1724420056913,3.76791,2654.0,2653.6,0.09251427]
[1724420057318,3.84285018,2654.0,2653.6,0.09251427]
[1724420057492,3.76825,2653.8,2653.6,0.09251427]
[1724420057686,3.76832,2653.7,2653.6,0.09251427]
[1724420057900,3.84319018,2653.7,2653.6,0.09251427]
[1724420058107,3.84319018,2653.7,2653.1,3.76915]
[1724420058520,3.84319018,2653.7,2653.2,0.09299678]
[1724420058726,3.76847,2653.6,2653.2,0.09299678]
[1724420059233,3.76847,2653.6,2653.1,3.76909]
[1724420059398,3.84312018,2653.8,2653.1,3.76909]
[1724420059399,3.84312018,2653.8,2653.3,0.09297409]
[1724420059607,3.76825,2653.8,2653.2,0.09309081]
[1724420059819,3.76825,2653.8,2653.3,3.7688]
[1724420060105,2.4106,2654.2,2653.2,0.09309081]
[1724420060106,6.1783,2654.2,2653.5,3.76849]
[1724420060305,4.31788,2654.1,2653.6,3.76845]
[1724420060506,4.31788,2654.1,2653.6,3.86108181]
[1724420060834,3.76741,2654.4,2653.8,3.76817]
[1724420060996,5.63288628,2654.4,2653.8,3.76817]
[1724420061350,5.63288628,2654.4,2653.4,7.49]
[1724420061351,3.76671,2654.9,2654.3,3.76741]
[1724420061485,3.76713,2654.6,2654.1,2.4224]
[1724420061683,3.76719,2654.5,2654.4,0.09169073]
[1724420061885,3.76691,2654.7,2654.1,2.4224]
[1724420062084,7.5339,2654.7,2654.2,0.09191223]
[1724420062341,3.76691,2654.7,2654.2,0.09191223]
[1724420062483,3.76727,2654.5,2654.2,0.09191223]
[1724420062684,3.76747,2654.3,2654.2,0.09191223]
[1724420062879,3.76747,2654.3,2653.8,11.25815]
[1724420063135,3.76747,2654.3,2653.9,0.09216816]
[1724420063729,3.76727,2654.5,2653.9,3.86014816]
[1724420064085,3.76734,2654.4,2653.9,0.09216816]
[1724420064488,3.76727,2654.5,2653.9,0.09216816]
[1724420064489,3.76727,2654.5,2653.9,3.86017816]
[1724420064735,3.76727,2654.5,2654.0,3.76788]
[1724420064923,3.76727,2654.5,2654.0,3.8599315]
[1724420065096,3.76735,2654.4,2654.0,0.0920515]
[1724420065293,3.76727,2654.5,2654.0,0.0920515]
[1724420065491,3.76727,2654.5,2653.9,3.76801]
[1724420065705,3.76727,2654.5,2654.1,0.09193485]
[1724420065904,3.76727,2654.5,2654.0,3.8599315]
[1724420066194,3.76747,2654.3,2654.2,0.0918182]
[1724420066394,7.53522,2654.2,2653.5,7.49]
[1724420066711,7.53522,2654.2,2653.6,0.09251819]
[1724420066712,3.76789,2654.0,2653.6,0.09251819]
[1724420066908,3.76828,2653.8,2653.6,0.09251819]
[1724420067294,3.76797,2654.0,2653.6,0.09251819]
[1724420067752,7.91965402,2654.2,2653.6,0.09251819]
[1724420068045,0.55,2654.1,2653.6,3.86093819]
[1724420068349,3.76762,2654.2,2653.6,5.37284801]
[1724420069344,3.76778,2654.1,2653.6,5.37284801]
[1724420069507,3.76799,2654.0,2653.6,0.09251819]
[1724420070502,3.76777,2654.1,2653.6,3.86096819]
[1724420070726,3.7677,2654.2,2653.6,3.86089819]
[1724420071043,2.2864,2654.8,2653.6,0.09251819]
[1724420071249,3.76711,2654.6,2654.1,3.76773]
[1724420071551,1.422628,2655.1,2654.2,3.8594048]
[1724420071714,2.4827,2655.3,2654.2,3.8594048]
[1724420071715,3.76683,2654.8,2654.2,3.8594048]
[1724420072320,3.76683,2654.8,2654.2,0.0918848]
[1724420072517,3.76707,2654.6,2654.2,0.0918848]
[1724420072724,3.76707,2654.6,2654.0,3.76779]
[1724420073041,3.76707,2654.6,2654.3,0.09171723]
[1724420073242,7.53369,2654.8,2654.1,3.76763]
[1724420073462,7.53369,2654.8,2654.4,0.09160061]
[1724420073463,3.76683,2654.8,2654.4,0.09160061]
[1724420073661,3.76683,2654.8,2654.0,4.521378]
[1724420073807,3.76683,2654.8,2654.5,0.09140956]
[1724420074006,3.76683,2654.8,2654.2,3.76758]
[1724420074239,3.76683,2654.8,2654.6,0.09129296]
[1724420074443,7.53315,2655.0,2654.4,3.76725]
[1724420074747,3.76664,2654.9,2654.4,3.76725]
[1724420074945,3.76664,2654.9,2654.5,0.09133515]
[1724420075107,3.76656,2655.0,2654.5,0.09133515]
[1724420075444,3.76624,2655.2,2654.5,3.85841515]
[1724420075644,3.76636,2655.1,2654.5,3.85841515]
[1724420076047,3.76636,2655.1,2654.6,3.76703]
[1724420076218,4.391134,2655.2,2654.6,3.76703]
[1724420076419,7.53257,2655.2,2654.7,0.09110194]
[1724420076620,3.76591,2655.4,2654.8,2.3847]
[1724420076821,3.76621,2655.2,2654.8,2.3847]
[1724420077028,3.76621,2655.2,2654.9,0.09081394]
[1724420078175,3.76599,2655.4,2654.9,0.09081394]
[1724420078478,7.53199,2655.4,2654.9,0.09081394]
[1724420078678,3.76599,2655.4,2654.9,0.09081394]
[1724420079327,3.76621,2655.2,2654.9,0.09081394]
[1724420079819,0.07487018,2655.3,2654.9,0.09081394]
[1724420080030,3.76647,2655.0,2654.9,0.09081394]
[1724420080222,3.76647,2655.0,2654.6,7.49]
[1724420080423,7.5325,2655.2,2654.9,0.09037923]
[1724420080625,3.76645,2655.1,2654.6,7.49]
[1724420080946,4.39809883,2655.2,2654.6,11.25701]
[1724420081146,3.7662,2655.2,2654.7,3.85749241]
[1724420081445,7.53198,2655.4,2654.7,7.62429241]
[1724420081648,7.53198,2655.4,2654.8,3.76675]
[1724420081845,3.76605,2655.3,2654.8,3.76675]
[1724420082048,3.76605,2655.3,2654.9,0.09037923]
[1724420082864,3.76594,2655.4,2654.9,3.85695923]
[1724420083016,3.76594,2655.4,2654.9,0.09037923]
[1724420083215,3.76631,2655.2,2654.9,0.09037923]
[1724420083551,3.76631,2655.2,2654.7,3.76689]
[1724420083552,3.76629,2655.2,2654.7,3.76689]
[1724420083752,3.76596,2655.4,2655.0,0.09020785]
[1724420083914,3.76596,2655.4,2654.8,3.76675]
[1724420084114,3.76596,2655.4,2654.9,3.85691442]
[1724420084315,3.76596,2655.4,2655.0,2.2604]
[1724420084511,4.35655114,2655.6,2655.1,0.09009129]
[1724420084715,3.76619,2655.2,2655.1,0.09009129]
[1724420084911,3.76619,2655.2,2654.6,9.7504]
[1724420085219,3.76619,2655.2,2654.7,0.09055759]
[1724420085446,3.76641,2655.1,2654.7,0.09055759]
[1724420085764,7.53322,2655.0,2654.7,0.09055759]
[1724420086055,3.76661,2655.0,2654.7,0.09055759]
[1724420086851,3.76628,2655.2,2654.7,0.09055759]
[1724420087042,3.76628,2655.2,2654.7,3.85736759]
[1724420087223,7.53259,2655.2,2654.7,3.85736759]
[1724420087425,3.76641,2655.1,2654.7,0.09055759]
[1724420087612,7.53318,2655.0,2654.7,0.09055759]
[1724420087815,3.76669,2654.9,2654.7,0.09055759]
[1724420088016,3.76658,2655.0,2654.7,0.09055759]
[1724420088649,3.76658,2655.0,2654.4,7.53447]
[1724420088852,3.76658,2655.0,2654.4,10.11449478]
[1724420089052,3.76658,2655.0,2654.5,0.0907908]
[1724420089374,3.76626,2655.2,2654.7,3.76687]
[1724420089740,3.76598,2655.4,2654.8,3.857181]
[1724420089961,4.31613,2655.3,2654.8,6.294981]
[1724420090268,3.76622,2655.2,2654.8,2.528241]
[1724420091647,3.76597,2655.4,2654.8,2.528241]
[1724420091648,3.76597,2655.4,2654.8,6.294981]
[1724420091949,3.76597,2655.4,2654.8,10.061661]
[1724420092129,3.76597,2655.4,2654.9,3.7666]
[1724420092325,0.59071566,2655.5,2655.0,0.09016868]
[1724420092593,0.59071566,2655.5,2654.8,3.4439661]
[1724420092594,3.76608,2655.3,2654.8,6.20453]
[1724420092769,4.31602,2655.4,2655.1,0.09000123]
[1724420092930,3.76605,2655.3,2654.9,3.7666]
[1724420093127,4.35655566,2655.5,2655.0,0.09011388]
[1724420093370,4.35655566,2655.5,2655.0,3.85657388]
[1724420093531,4.35657566,2655.5,2655.0,0.09011388]
[1724420093732,7.5323,2655.3,2655.0,0.09011388]
[1724420093941,3.76633,2655.1,2654.8,2.4378]
[1724420094253,3.76613,2655.3,2655.1,0.0899934]
[1724420094254,3.7662,2655.2,2655.1,0.0899934]
[1724420094755,3.76613,2655.3,2655.1,0.0899934]
[1724420095080,3.76581,2655.5,2654.8,6.20443]
[1724420095081,3.76591,2655.4,2654.8,6.20443]
[1724420095256,3.76591,2655.4,2655.2,0.08987685]
[1724420095453,3.76591,2655.4,2654.8,2.4378]
[1724420095655,3.19953432,2660.5,2655.3,2.56545247]
[1724420095656,0.51069767,2656.5,2655.3,2.56545247]
[1724420095862,3.7652,2655.9,2655.3,2.56545247]
[1724420096044,3.76571,2655.6,2655.3,2.56545247]
[1724420096244,3.76591,2655.4,2655.3,2.56545247]
[1724420096945,3.76591,2655.4,2655.3,0.08975247]
[1724420097176,7.53182,2655.4,2655.3,0.08975247]
[1724420097396,7.53193,2655.4,2654.9,6.1703]
[1724420097597,3.76605,2655.3,2654.9,2.4037]
[1724420097899,3.76605,2655.3,2655.0,0.09000037]
[1724420098198,3.76621,2655.2,2655.0,0.09000037]
[1724420099147,3.76601,2655.4,2655.0,0.09000037]
[1724420099847,3.76605,2655.3,2655.0,0.09000037]
[1724420100278,3.76622,2655.2,2655.0,0.09000037]
[1724420100499,3.76633,2655.1,2655.0,0.09000037]
[1724420100645,3.76616,2655.3,2655.0,0.09000037]
[1724420100849,3.76616,2655.3,2654.7,3.76681]
[1724420101052,3.76616,2655.3,2655.1,0.08988381]
[1724420101260,3.76616,2655.3,2654.7,3.76681]
[1724420101494,3.76616,2655.3,2655.2,0.08976725]
[1724420101813,4.31615,2655.3,2655.2,0.08976725]
[1724420101966,3.76627,2655.2,2654.6,3.76701]
[1724420102154,3.76567,2655.6,2655.2,0.08960679]
[1724420102155,3.76563,2655.6,2655.2,0.08960679]
[1724420102492,3.76578,2655.5,2655.1,2.3166]
[1724420102689,7.53134,2655.6,2655.3,0.08949024]
[1724420102891,7.53134,2655.6,2655.2,0.08960679]
[1724420103049,3.76576,2655.5,2655.4,0.0893737]
[1724420103248,3.76576,2655.5,2655.1,2.3166]
[1724420103503,3.7654,2655.8,2655.4,0.0893737]
[1724420103701,3.76513,2656.0,2655.5,3.76574]
[1724420104001,3.76528,2655.9,2655.5,0.0893198]
[1724420104309,3.76536,2655.8,2655.5,0.0893198]
[1724420104606,3.76513,2656.0,2655.6,0.08919545]
[1724420104607,3.7651,2656.0,2655.6,0.08919545]
[1724420104778,3.7651,2656.0,2655.7,2.4767]
[1724420105103,7.53025,2656.0,2655.7,2.56577894]
[1724420105463,3.76483,2656.2,2655.7,2.56577894]
[1724420105664,0.61451747,2656.5,2655.7,0.08907894]
[1724420105977,3.76538,2655.8,2655.4,2.3988]
[1724420106786,7.53083,2655.8,2655.4,2.3988]
[1724420107303,7.53082,2655.8,2655.4,2.3988]
[1724420107604,3.76538,2655.8,2655.4,2.3988]
[1724420107981,3.76557,2655.7,2655.4,2.3988]
[1724420108978,3.76538,2655.8,2655.4,2.3988]
[1724420109168,3.76513,2656.0,2655.4,2.3988]
[1724420109372,4.31524,2655.9,2655.4,2.3988]
[1724420109604,4.31524,2655.9,2655.4,6.16467]
[1724420110168,4.31524,2655.9,2655.4,2.3988]
[1724420110368,0.55,2655.9,2655.5,3.76568]
[1724420110582,0.55,2656.0,2655.4,7.457776]
[1724420110780,0.55,2656.0,2655.6,3.7656]
[1724420111011,3.76454,2656.4,2655.7,3.76543]
[1724420111306,3.76454,2656.4,2655.8,3.76532]
[1724420111469,3.76454,2656.4,2655.8,4.518408]
[1724420111799,3.76454,2656.4,2655.8,4.518338]
[1724420111800,7.52914,2656.4,2655.8,4.518338]
[1724420111971,3.76454,2656.4,2655.9,2.4851]
[1724420112607,3.76454,2656.4,2655.9,2.56039577]
[1724420113207,3.76435,2656.5,2655.9,2.4851]
[1724420113403,7.52861,2656.6,2656.0,0.6840136]
[1724420113918,3.83027471,2657.2,2656.1,3.76487]
[1724420113919,3.76408,2656.7,2656.1,3.76487]
[1724420114142,3.76399,2656.8,2656.2,6.02836]
[1724420114293,3.7631,2657.4,2656.0,4.4490636]
[1724420114294,3.76313,2657.4,2656.1,3.83027471]
[1724420114492,4.53474523,2659.1,2656.8,6.02742]
[1724420114493,3.76293,2657.5,2656.8,6.02742]
[1724420114812,3.76253,2657.8,2657.1,6.02698]
[1724420114989,3.76251,2657.8,2657.1,2.2636]
[1724420115326,3.76251,2657.8,2657.2,0.08657329]
[1724420115666,0.59063728,2657.9,2657.2,0.08657329]
[1724420115667,3.76292,2657.6,2657.2,0.08657329]
[1724420115867,3.76321,2657.3,2657.2,0.08657329]
[1724420116334,0.59063728,2657.9,2657.2,0.32159062]
[1724420116506,3.76282,2657.6,2657.2,0.32159062]
[1724420116841,3.76321,2657.3,2657.2,0.08657329]
[1724420116973,11.28963,2657.3,2657.2,0.08657329]
[1724420117169,3.76403,2656.8,2656.4,2.2805]
[1724420117406,3.76424,2656.6,2656.4,2.2805]
[1724420117829,3.76435,2656.5,2656.4,2.2805]
[1724420118007,3.76424,2656.6,2655.9,2.2805]
[1724420118206,3.76397,2656.8,2656.4,2.36431879]
[1724420118522,7.52742,2657.0,2656.4,2.2805]
[1724420118745,0.55,2656.9,2656.4,2.2805]
[1724420119039,0.55,2656.9,2656.5,0.08389724]
[1724420119238,3.76393,2656.8,2656.5,0.08389724]
[1724420119585,3.7642,2656.6,2656.5,0.08389724]
[1724420120493,0.752813,2656.6,2656.1,2.2805]
[1724420120802,0.752813,2656.6,2655.4,5.12336071]
[1724420120803,3.76417,2656.7,2656.3,2.2805]
[1724420121011,2.4896,2658.3,2656.7,2.2805]
[1724420121210,4.35313728,2657.9,2657.3,2.2805]
[1724420121458,3.76196,2658.2,2657.3,2.2805]
[1724420121735,3.76262,2657.8,2657.4,0.08288085]
[1724420121946,3.76283,2657.6,2657.4,0.08288085]
[1724420122088,7.52586,2657.5,2657.4,0.08288085]
[1724420122294,3.76335,2657.3,2657.0,2.3353]
[1724420122610,3.76328,2657.3,2657.1,0.08322996]
[1724420123023,3.76294,2657.5,2657.1,0.08322996]
[1724420123191,3.76294,2657.5,2657.1,0.32508296]
[1724420123645,3.76294,2657.5,2657.1,0.08322996]
[1724420123945,3.76253,2657.8,2657.1,0.08322996]
[1724420124250,3.76241,2657.9,2657.1,0.08322996]
[1724420124251,3.76266,2657.7,2657.1,0.08322996]
[1724420124387,3.76308,2657.4,2657.1,0.08322996]
[1724420124834,3.76335,2657.2,2657.1,0.08322996]
[1724420125012,7.52629,2657.4,2657.1,0.08322996]
[1724420125259,3.76282,2657.6,2657.1,0.08322996]
[1724420125538,4.31294,2657.5,2657.1,0.08322996]
[1724420125944,0.55,2657.5,2657.1,0.08322996]
[1724420126242,3.76276,2657.7,2657.1,4.46490496]
[1724420126454,3.76241,2657.9,2657.1,4.46490496]
[1724420126455,0.55,2657.6,2657.1,0.08322996]
[1724420126665,3.76335,2657.2,2657.1,0.08322996]
[1724420127050,3.76335,2657.2,2656.7,5.2772]
[1724420127365,3.76315,2657.4,2656.7,5.2772]
[1724420127505,3.76315,2657.4,2656.8,5.50035926]
[1724420127976,3.76285,2657.6,2656.8,5.50035926]
[1724420128257,3.76293,2657.5,2656.9,3.76375]
[1724420128402,3.76256,2657.8,2657.2,3.76335]
[1724420128807,3.76267,2657.7,2657.3,0.08284521]
[1724420129125,3.76267,2657.7,2657.0,3.76351]
[1724420129331,3.76267,2657.7,2657.1,0.45942896]
[1724420129528,3.76275,2657.7,2657.1,4.22282896]
[1724420129735,3.76256,2657.8,2657.2,6.21667]
[1724420130071,3.76246,2657.9,2657.3,3.84594521]
[1724420130333,3.76228,2658.0,2657.4,4.39294452]
[1724420130497,7.59184471,2658.5,2657.5,2.4534]
[1724420130653,3.76264,2657.8,2657.5,0.08257742]
[1724420130836,3.7623,2658.0,2657.5,0.08257742]
[1724420131273,3.76199,2658.2,2657.5,3.76283]
[1724420131497,3.76199,2658.2,2657.6,0.45874408]
[1724420131912,3.76208,2658.1,2657.6,0.49130218]
[1724420132083,7.52405,2658.2,2657.6,0.49130218]
[1724420132411,3.76208,2658.1,2657.6,0.49130218]
[1724420132749,7.52427,2658.1,2657.6,0.49130218]
[1724420132995,3.76222,2658.0,2657.6,0.49130218]
[1724420133397,3.76208,2658.1,2657.6,0.11501918]
[1724420133903,3.76184,2658.3,2657.6,2.3495]
[1724420134213,3.76223,2658.0,2657.7,0.11490229]
[1724420134367,3.76247,2657.9,2657.7,0.11490229]
[1724420135400,3.76251,2657.8,2657.7,0.11490229]
[1724420135572,7.52502,2657.8,2657.7,0.11490229]
[1724420135927,3.76298,2657.5,2656.9,2.3495]
[1724420136202,3.76323,2657.3,2656.9,2.3495]
[1724420136409,7.52545,2657.7,2657.1,3.76349]
[1724420136606,0.55,2657.8,2657.2,3.76333]
[1724420136812,3.76241,2657.9,2656.9,3.8751576]
[1724420137016,4.35028612,2659.5,2657.6,6.06239]
[1724420137017,3.76188,2658.3,2657.6,6.06239]
[1724420137219,4.138208,2658.2,2657.6,6.06239]
[1724420137370,3.76202,2658.2,2657.6,6.06239]
[1724420137762,3.76188,2658.3,2657.7,3.76264]
[1724420138120,3.76188,2658.3,2657.6,2.2997]
[1724420138121,3.76219,2658.1,2657.6,2.2997]
[1724420139019,3.76219,2658.1,2657.6,6.06245]
[1724420141109,3.76219,2658.1,2657.6,9.82515]
[1724420141263,3.76219,2658.1,2657.6,7.793915]
[1724420142106,3.76143,2658.6,2657.6,4.031215]
[1724420142107,3.76244,2657.9,2657.6,4.031215]
[1724420142313,3.76244,2657.9,2657.6,2.2997]
[1724420142475,7.52437,2658.1,2657.6,2.2997]
[1724420142660,3.76216,2658.1,2657.6,2.2997]
[1724420142859,7.52432,2658.1,2657.6,2.2997]
[1724420143076,7.52434,2658.1,2657.6,2.2997]
[1724420143466,3.76226,2658.0,2657.6,2.2997]
[1724420143806,3.76293,2657.5,2657.4,7.49]
[1724420144034,3.76293,2657.5,2657.0,6.11545]
[1724420144035,3.76329,2657.3,2657.0,2.3519]
[1724420144306,3.76308,2657.4,2656.6,2.3519]
[1724420144307,3.76373,2657.0,2656.6,2.3519]
[1724420144508,3.76388,2656.9,2656.6,2.3519]
[1724420144708,3.76392,2656.8,2656.7,0.11210672]
[1724420145213,3.76496,2656.1,2655.8,2.3937]
[1724420145480,3.76478,2656.2,2655.8,2.3937]
[1724420145792,3.76407,2656.7,2655.8,6.15895]
[1724420145998,0.55,2656.6,2656.1,3.7648]
[1724420146307,3.76384,2656.9,2656.2,3.76467]
[1724420146508,3.76384,2656.9,2656.3,2.741267]
[1724420147843,3.76384,2656.9,2656.3,6.505857]
[1724420147989,7.52716,2657.1,2656.4,3.76436]
[1724420148194,3.76353,2657.1,2656.4,3.76436]
[1724420148697,3.75089041,2657.0,2656.4,3.76436]
[1724420148941,0.55,2657.2,2656.4,3.76436]
[1724420148942,3.76387,2656.9,2656.4,1.0270367]
[1724420149134,3.76393,2656.8,2656.4,1.0270367]
[1724420149662,3.76357,2657.1,2656.4,1.0270367]
[1724420149663,3.7638,2656.9,2656.4,1.0270367]
[1724420150524,3.76357,2657.1,2656.5,3.76425]
[1724420150851,0.55,2657.2,2656.5,3.76425]
[1724420151163,7.5255,2657.7,2657.1,3.76349]
[1724420151319,7.5255,2657.7,2657.2,0.0752595]
[1724420151320,3.76281,2657.6,2657.2,0.0752595]
[1724420151649,7.52601,2657.5,2656.9,6.02637]
[1724420151855,3.76324,2657.3,2656.9,2.2626]
[1724420152151,3.76297,2657.5,2657.0,0.22626]
[1724420152152,3.76319,2657.4,2657.0,0.22626]
[1724420152502,3.76297,2657.5,2657.0,0.22626]
[1724420152837,7.52602,2657.5,2657.0,0.22626]
[1724420153032,3.76297,2657.5,2657.0,0.22626]
[1724420153236,3.76308,2657.4,2657.0,0.22626]
[1724420153625,3.76308,2657.4,2656.9,2.2626]
[1724420153626,3.76336,2657.2,2656.9,2.2626]
[1724420154133,3.76386,2656.9,2656.6,2.73592867]
[1724420154317,7.52716,2657.1,2656.6,2.73592867]
[1724420154519,7.52659,2657.3,2656.6,2.73592867]
[1724420154727,4.31284,2657.6,2656.9,3.76365]
[1724420154943,4.31284,2657.6,2657.0,4.516387]
[1724420155112,3.76296,2657.5,2657.0,4.516387]
[1724420155653,4.31284,2657.6,2657.0,4.516307]
[1724420155854,4.31284,2657.6,2657.0,3.76355]
[1724420156059,3.76295,2657.5,2656.8,3.76381]
[1724420156210,3.76295,2657.5,2656.9,3.76376]
[1724420156606,3.76295,2657.5,2656.8,3.76381]
[1724420156855,3.76308,2657.4,2656.8,3.76381]
[1724420157049,3.76308,2657.4,2656.9,0.376381]
[1724420157445,4.31284,2657.6,2657.0,6.06962]
[1724420157967,3.76284,2657.6,2657.0,6.06962]
[1724420158165,3.76224,2658.0,2657.3,3.76312]
[1724420158407,3.76224,2658.0,2657.3,4.515756]
[1724420158558,3.76224,2658.0,2657.4,3.76298]
[1724420158955,7.52455,2658.0,2657.4,3.76298]
[1724420159205,3.76224,2658.0,2657.4,3.76298]
[1724420159369,3.76202,2658.2,2657.5,2.404]
[1724420159701,3.76202,2658.2,2657.6,4.5659053]
[1724420159879,3.76202,2658.2,2657.6,8.3286053]
[1724420160078,3.76202,2658.2,2657.6,4.5659053]
[1724420160279,2.4319,2658.8,2657.8,3.76248]
[1724420160280,3.76146,2658.6,2657.8,3.76248]
[1724420160527,2.4319,2658.8,2657.8,3.76248]
[1724420160528,3.76181,2658.3,2657.8,3.76248]
[1724420160701,3.76181,2658.3,2657.9,0.48710661]
[1724420160881,3.76169,2658.4,2657.9,0.48710661]
[1724420161397,3.76143,2658.6,2658.0,3.83745318]
[1724420161398,3.76152,2658.5,2658.0,3.83745318]
[1724420161598,3.76152,2658.5,2657.9,0.48710661]
[1724420161805,3.76166,2658.4,2657.9,0.48710661]
[1724420162406,2.4319,2658.8,2657.9,0.11085861]
[1724420162407,3.76222,2658.0,2657.9,0.11085861]
[1724420162568,3.76222,2658.0,2657.5,2.404]
[1724420162766,3.76211,2658.1,2657.6,0.11101336]
[1724420162974,7.52429,2658.1,2657.6,0.11101336]
[1724420163154,3.76233,2658.0,2657.6,1.1151047]
[1724420163362,3.76211,2658.1,2657.6,1.1151047]
[1724420164060,3.76185,2658.3,2657.6,1.1151047]
[1724420164289,3.76185,2658.3,2657.6,0.11101336]
[1724420164895,7.52319,2658.5,2657.8,3.76248]
[1724420165095,3.76166,2658.4,2657.9,3.76235]
[1724420165303,3.76166,2658.4,2657.9,3.87301069]
[1724420165862,3.76166,2658.4,2657.9,0.11066069]
[1724420166164,3.76181,2658.3,2657.7,3.76264]
[1724420166361,3.76181,2658.3,2657.8,1.23604224]
[1724420166907,3.76181,2658.3,2657.8,0.11077824]
[1724420167404,3.76205,2658.2,2657.9,0.11036569]
[1724420167908,3.7617,2658.4,2657.6,7.49]
[1724420168061,3.7617,2658.4,2658.0,0.11024815]
[1724420168062,11.28624,2658.1,2658.0,0.11024815]
[1724420168264,3.76274,2657.7,2657.2,9.8634]
[1724420168493,7.52552,2657.7,2657.2,9.8634]
[1724420168693,7.52552,2657.7,2657.3,0.11110603]
[1724420168694,3.76274,2657.7,2657.3,0.11110603]
[1724420168910,3.76251,2657.8,2657.3,0.11110603]
[1724420169066,3.76265,2657.7,2657.2,13.62666]
[1724420169266,3.76265,2657.7,2657.4,0.11108157]
[1724420169466,3.76265,2657.7,2657.3,3.09820616]
[1724420169667,3.76279,2657.6,2657.5,0.11096399]
[1724420169901,3.83699018,2658.1,2657.4,0.11108157]
[1724420169902,7.52586,2657.5,2657.4,0.11108157]
[1724420170102,3.76321,2657.3,2657.2,7.49]
[1724420170611,3.763,2657.5,2657.2,7.49]
[1724420171518,3.76321,2657.3,2657.2,7.49]
[1724420171723,3.76321,2657.3,2656.6,9.0335]
[1724420171905,3.76414,2656.7,2656.3,4.615773]
[1724420172070,3.76429,2656.6,2656.3,2.2693]
[1724420172269,3.76429,2656.6,2656.0,6.03431]
[1724420172580,3.764,2656.8,2656.1,3.76491]
[1724420172897,3.76369,2657.0,2656.2,3.76476]
[1724420173096,3.76401,2656.8,2656.2,3.76476]
[1724420173709,3.76408,2656.7,2656.1,0.979922]
[1724420174072,7.52804,2656.8,2656.1,4.744822]
[1724420174272,3.76401,2656.8,2656.1,4.744822]
[1724420174667,3.76401,2656.8,2655.8,3.76527]
[1724420174668,3.76445,2656.5,2656.2,0.11249325]